lending/lending_fUSD_20241229
["ID","MTS","AMOUNT","RATE_DAILY","PERIOD"]
[347020504,1735471833120,-500.0,0.00012765,2]
[347020506,1735471833130,-659.24,0.00012765,2]
[347020508,1735471833140,-500.0,0.00012765,2]
[347020510,1735471833149,-500.0,0.00012765,2]
[347020512,1735471833159,-500.0,0.00012765,2]
[347020514,1735471833168,-500.0,0.00012765,2]
[347020516,1735471833178,-2470.31,0.00012765,2]
[347020518,1735471833187,-900.77,0.00012765,2]
[347020520,1735471833197,-500.0,0.00012765,2]
[347020522,1735471833206,-500.0,0.00012765,2]
[347020524,1735471833215,-500.0,0.00012765,2]
[347020526,1735471833224,-500.0,0.00012765,2]
[347020528,1735471833234,-500.0,0.00012765,2]
[347020530,1735471833243,-500.0,0.00012765,2]
[347020532,1735471833253,-622.87,0.00012765,2]
[347020534,1735471833263,-808.66,0.00012765,2]
[347020536,1735471833272,-811.02,0.00012765,2]
[347020538,1735471833281,-914.8,0.00012765,2]
[347020540,1735471833291,-500.0,0.00012765,2]
[347020542,1735471833301,-500.0,0.00012765,2]
[347020544,1735471833310,-500.0,0.00012765,2]
[347020546,1735471833320,-500.0,0.00012765,2]
[347020548,1735471833330,-1055.98,0.00012765,2]
[347020549,1735471833340,-993.75,0.00012765,2]
[347020550,1735471833350,-500.0,0.00012765,2]
[347020551,1735471833359,-520.14,0.00012765,2]
[347020552,1735471833368,-500.0,0.00012765,2]
[347020553,1735471833378,-649.52,0.00012765,2]
[347020554,1735471833387,-500.0,0.00012765,2]
[347020555,1735471833396,-560.18,0.00012765,2]
[347020556,1735471833406,-500.0,0.00012765,2]
[347020557,1735471833416,-3907.68,0.00012765,2]
[347020558,1735471833425,-500.0,0.00012765,2]
[347020560,1735471833435,-500.0,0.00012765,2]
[347020562,1735471833445,-500.0,0.00012765,2]
[347020564,1735471833454,-500.0,0.00012765,2]
[347020566,1735471833463,-500.0,0.00012765,2]
[347020568,1735471833477,-607.42,0.00012765,2]
[347020570,1735471833486,-500.0,0.00012765,2]
[347020572,1735471833496,-500.0,0.00012765,2]
[347020574,1735471833505,-1707.56,0.00012765,2]
[347020576,1735471833516,-500.0,0.00012765,2]
[347020578,1735471833525,-967.52,0.00012765,2]
[347020580,1735471833535,-500.0,0.00012765,2]
[347020582,1735471833545,-500.0,0.00012765,2]
[347020584,1735471833554,-500.0,0.00012765,2]
[347020586,1735471833563,-500.0,0.00012765,2]
[347020588,1735471833572,-500.0,0.00012765,2]
[347020590,1735471833582,-500.0,0.00012765,2]
[347020592,1735471833591,-500.0,0.00012765,2]
[347020594,1735471833600,-871.7,0.00012765,2]
[347020596,1735471833610,-500.0,0.00012765,2]
[347020598,1735471833620,-571.4,0.00012765,2]
[347020600,1735471833629,-1374.24,0.00012765,2]
[347020602,1735471833639,-2608.85,0.00012765,2]
[347020603,1735471833648,-773.52,0.00012765,2]
[347020604,1735471833657,-500.0,0.00012765,2]
[347020605,1735471833666,-500.0,0.00012765,2]
[347020606,1735471833676,-1297.22,0.00012765,2]
[347020607,1735471833685,-663.88,0.00012765,2]
[347020608,1735471833694,-500.0,0.00012765,2]
[347020609,1735471833867,-752.07,0.00012765,2]
[347020610,1735471833884,-1072.91,0.00012765,2]
[347020611,1735471833894,-500.0,0.00012765,2]
[347020612,1735471833904,-500.0,0.00012765,2]
[347020613,1735471833914,-557.14,0.00012765,2]
[347020614,1735471833924,-500.0,0.00012765,2]
[347020615,1735471833934,-500.0,0.00012765,2]
[347020616,1735471833944,-500.0,0.00012765,2]
[347020617,1735471833953,-500.0,0.00012765,2]
[347020618,1735471833963,-500.0,0.00012765,2]
[347020619,1735471833972,-500.0,0.00012765,2]
[347020620,1735471833982,-500.0,0.00012765,2]
[347020621,1735471833991,-500.0,0.00012765,2]
[347020622,1735471834001,-530.33,0.00012765,2]
[347020623,1735471834010,-500.0,0.00012765,2]
[347020624,1735471834020,-4086.66,0.00012765,2]
[347020625,1735471834029,-500.0,0.00012765,2]
[347020626,1735471834039,-500.0,0.00012765,2]
[347020627,1735471834048,-500.0,0.00012765,2]
[347020628,1735471834057,-500.0,0.00012765,2]
[347020629,1735471834067,-585.7,0.00012765,2]
[347020630,1735471834076,-500.0,0.00012765,2]
[347020631,1735471834086,-592.01,0.00012765,2]
[347020632,1735471834096,-500.0,0.00012765,2]
[347020633,1735471834106,-1420.85,0.00012765,2]
[347020634,1735471834115,-500.0,0.00012765,2]
[347020635,1735471834124,-517.24,0.00012765,2]
[347020636,1735471834134,-793.88,0.00012765,2]
[347020637,1735471834143,-2983.11,0.00012765,2]
[347020638,1735471834153,-500.0,0.00012765,2]
[347020639,1735471834162,-791.89,0.00012765,2]
[347020640,1735471834171,-635.15,0.00012765,2]
[347020641,1735471834180,-858.91,0.00012765,2]
[347020642,1735471834189,-500.0,0.00012765,2]
[347020643,1735471834199,-512.87,0.00012765,2]
[347020644,1735471834208,-500.0,0.00012765,2]
[347020645,1735471834217,-573.26,0.00012765,2]
[347020646,1735471834227,-1080.74,0.00012765,2]
[347020647,1735471834236,-500.0,0.00012765,2]
[347020648,1735471834245,-625.79,0.00012765,2]
[347020649,1735471834254,-500.0,0.00012765,2]
[347020650,1735471834263,-1966.46,0.00012765,2]
[347020651,1735471834272,-500.0,0.00012765,2]
[347020652,1735471834281,-500.0,0.00012765,2]
[347020653,1735471834290,-500.0,0.00012765,2]
[347020654,1735471834299,-1447.67,0.00012765,2]
[347020655,1735471834308,-1473.69,0.00012765,2]
[347020656,1735471834317,-500.0,0.00012765,2]
[347020657,1735471834326,-758.41,0.00012765,2]
[347020658,1735471834336,-154.388321,0.00012765,2]
[347020659,1735471834345,-157.91262,0.00012765,2]
[347020660,1735471834354,-1521.697389,0.00012765,2]
[347020661,1735471834363,-500.0,0.00012765,2]
[347020662,1735471834372,-500.0,0.00012765,2]
[347020663,1735471834381,-500.0,0.00012765,2]
[347020664,1735471834390,-630.29,0.00012765,2]
[347020665,1735471834399,-999.36,0.00012765,2]
[347020666,1735471834409,-1385.931247,0.00012765,2]
[347020667,1735471834418,-500.0,0.00012765,2]
[347020668,1735471834427,-500.0,0.00012765,2]
[347020669,1735471834437,-500.0,0.00012765,2]
[347020670,1735471834446,-500.0,0.00012765,2]
[347020671,1735471834455,-500.0,0.00012765,2]
[347020672,1735471834464,-500.0,0.00012765,2]
[347020673,1735471834475,-500.0,0.00012765,2]
[347020674,1735471834484,-500.0,0.00012765,2]
[347020675,1735471834493,-500.0,0.00012765,2]
[347020676,1735471834502,-12061.51,0.00012765,2]
[347020677,1735471834511,-500.0,0.00012765,2]
[347020678,1735471834522,-1443.46,0.00012765,2]
[347020679,1735471834531,-500.0,0.00012765,2]
[347020680,1735471834540,-500.0,0.00012765,2]
[347020681,1735471834550,-500.0,0.00012765,2]
[347020682,1735471834560,-500.0,0.00012765,2]
[347020683,1735471834569,-500.0,0.00012765,2]
[347020684,1735471834579,-759.05,0.00012765,2]
[347020685,1735471834589,-500.0,0.00012765,2]
[347020686,1735471834598,-500.0,0.00012765,2]
[347020687,1735471834607,-970.97,0.00012765,2]
[347020688,1735471834617,-500.0,0.00012765,2]
[347020689,1735471834627,-733.85,0.00012765,2]
[347020690,1735471834636,-500.0,0.00012765,2]
[347020691,1735471834645,-1264.21329259,0.00012765,2]
[347020692,1735471834661,-209.17670741,0.00012765,2]
[347020693,1735471834671,-500.0,0.00012765,2]
[347020694,1735471834679,-500.0,0.00012765,2]
[347020695,1735471834688,-529.62,0.00012765,2]
[347020696,1735471834698,-211.20329259,0.00012765,2]
[347020697,1735471834709,-288.79670741,0.00012765,2]
[347020698,1735471834718,-500.0,0.00012765,2]
[347020699,1735471834728,-649.91,0.00012765,2]
[347020700,1735471834736,-177.48728959,0.00012765,2]
[347020701,1735471834819,-1666.75681614,0.00012765,2]
[347020702,1735471834831,-894.23589427,0.00012765,2]
[347020703,1735471834841,-500.0,0.00012765,2]
[347020704,1735471834849,-500.0,0.00012765,2]
[347020705,1735471834859,-500.0,0.00012765,2]
[347020706,1735471834868,-1280.98,0.00012765,2]
[347020707,1735471834876,-502.64399133,0.00012765,2]
[347020708,1735471834886,-500.0,0.00012765,2]
[347020709,1735471834894,-2013.71,0.00012765,2]
[347020710,1735471834903,-718.66,0.00012765,2]
[347020711,1735471834912,-500.0,0.00012765,2]
[347020712,1735471834922,-500.0,0.00012765,2]
[347020713,1735471834931,-500.0,0.00012765,2]
[347020714,1735471834941,-500.0,0.00012765,2]
[347020715,1735471834950,-676.92,0.00012765,2]
[347020716,1735471834959,-852.36,0.00012765,2]
[347020717,1735471834969,-540.76,0.00012765,2]
[347020718,1735471834978,-166.48647042,0.00012765,2]
[347020719,1735471834987,-416.0391163,0.00012765,2]
[347020720,1735471834996,-500.0,0.00012765,2]
[347020721,1735471835005,-500.0,0.00012765,2]
[347020722,1735471835015,-364.07546723,0.00012765,2]
[347020723,1735471835024,-2086.63,0.00012765,2]
[347020724,1735471835033,-500.0,0.00012765,2]
[347020725,1735471835042,-501.74405012,0.00012765,2]
[347020726,1735471835051,-501.55510905,0.00012765,2]
[347020727,1735471835060,-505.20921209,0.00012765,2]
[347020728,1735471835069,-500.81299638,0.00012765,2]
[347020729,1735471835079,-1290.82,0.00012765,2]
[347020730,1735471835089,-391.95769281,0.00012765,2]
[347020731,1735471835127,-108.04230719,0.00012765,2]
[347020732,1735471835136,-1642.32,0.00012765,2]
[347020733,1735471835145,-500.0,0.00012765,2]
[347020734,1735471835155,-631.29,0.00012765,2]
[347020735,1735471835164,-505.393119,0.00012765,2]
[347020736,1735471835172,-858.08,0.00012765,2]
[347020737,1735471835182,-705.37457381,0.00012765,2]
[347020738,1735471835193,-139.26542619,0.00012765,2]
[347020739,1735471835202,-602.25853313,0.00012765,2]
[347020740,1735471835213,-129.71146687,0.00012765,2]
[347020741,1735471835222,-500.0,0.00012765,2]
[347020742,1735471835231,-500.0,0.00012765,2]
[347020743,1735471835240,-501.73909869,0.00012765,2]
[347020744,1735471835249,-500.0,0.00012765,2]
[347020745,1735471835258,-500.0,0.00012765,2]
[347020746,1735471835267,-501.32732649,0.00012765,2]
[347020747,1735471835276,-500.0,0.00012765,2]
[347020748,1735471835285,-642.95498336,0.00012765,2]
[347020749,1735471835295,-491.66712459,0.00012765,2]
[347020753,1735471838191,-150.0,0.00012507,2]
[347020754,1735471838200,-500.0,0.00012764,2]
[347020755,1735471838209,-988.54,0.00012764,2]
[347020756,1735471838219,-8.33287541,0.00012765,2]
[347020757,1735471838228,-500.0,0.00012765,2]
[347020758,1735471838237,-1487.76,0.00012765,2]
[347020759,1735471838246,-500.0,0.00012765,2]
[347020760,1735471838255,-617.12,0.00012765,2]
[347020761,1735471838264,-559.65,0.00012765,2]
[347020762,1735471838273,-500.0,0.00012765,2]
[347020763,1735471838282,-500.0,0.00012765,2]
[347020764,1735471838291,-500.0,0.00012765,2]
[347020765,1735471838301,-766.09,0.00012765,2]
[347020766,1735471838309,-500.0,0.00012765,2]
[347020767,1735471838318,-659.75,0.00012765,2]
[347020768,1735471838327,-500.0,0.00012765,2]
[347020769,1735471838336,-500.0,0.00012765,2]
[347020770,1735471838345,-500.0,0.00012765,2]
[347020771,1735471838355,-1076.38,0.00012765,2]
[347020772,1735471838364,-11184.76,0.00012765,2]
[347020773,1735471838376,-500.0,0.00012765,2]
[347020774,1735471838386,-822.73,0.00012765,2]
[347020775,1735471838397,-500.0,0.00012765,2]
[347020776,1735471838406,-718.05,0.00012765,2]
[347020777,1735471838416,-500.0,0.00012765,2]
[347020779,1735471838426,-500.0,0.00012765,2]
[347020781,1735471838436,-500.0,0.00012765,2]
[347020783,1735471838445,-554.7,0.00012765,2]
[347020785,1735471838454,-500.0,0.00012765,2]
[347020787,1735471838464,-500.0,0.00012765,2]
[347020789,1735471838479,-500.0,0.00012765,2]
[347020791,1735471838489,-1553.47,0.00012765,2]
[347020793,1735471838499,-692.42,0.00012765,2]
[347020795,1735471838508,-2045.12,0.00012765,2]
[347020797,1735471838518,-500.0,0.00012765,2]
[347020799,1735471838527,-500.0,0.00012765,2]
[347020801,1735471838536,-500.0,0.00012765,2]
[347020803,1735471838545,-500.0,0.00012765,2]
[347020805,1735471838555,-514.8,0.00012765,2]
[347020807,1735471838564,-500.0,0.00012765,2]
[347020809,1735471838573,-1061.03,0.00012765,2]
[347020811,1735471838582,-500.0,0.00012765,2]
[347020813,1735471838592,-733.75,0.00012765,2]
[347020815,1735471838601,-6915.21,0.00012765,2]
[347020817,1735471838610,-500.0,0.00012765,2]
[347020819,1735471838620,-500.0,0.00012765,2]
[347020821,1735471838630,-500.0,0.00012765,2]
[347020823,1735471838639,-500.0,0.00012765,2]
[347020825,1735471838648,-500.0,0.00012765,2]
[347020827,1735471838657,-500.0,0.00012765,2]
[347020829,1735471838666,-939.78,0.00012765,2]
[347020831,1735471838675,-555.14,0.00012765,2]
[347020833,1735471838684,-500.0,0.00012765,2]
[347020835,1735471838693,-500.0,0.00012765,2]
[347020837,1735471838704,-500.0,0.00012765,2]
[347020839,1735471838713,-3212.04,0.00012765,2]
[347020841,1735471838723,-500.0,0.00012765,2]
[347020843,1735471838732,-747.32,0.00012765,2]
[347020845,1735471838741,-500.0,0.00012765,2]
[347020847,1735471838750,-500.0,0.00012765,2]
[347020849,1735471838759,-500.0,0.00012765,2]
[347020851,1735471838769,-501.93289793,0.00012765,2]
[347020853,1735471838778,-500.0,0.00012765,2]
[347020855,1735471838787,-2314.15,0.00012765,2]
[347020857,1735471838796,-500.0,0.00012765,2]
[347020859,1735471838805,-500.0,0.00012765,2]
[347020861,1735471838814,-500.0,0.00012765,2]
[347020863,1735471838823,-500.0,0.00012765,2]
[347020865,1735471838832,-500.0,0.00012765,2]
[347020867,1735471838844,-500.0,0.00012765,2]
[347020869,1735471838855,-500.0,0.00012765,2]
[347020871,1735471838864,-1030.07,0.00012765,2]
[347020873,1735471838873,-500.0,0.00012765,2]
[347020875,1735471838882,-500.0,0.00012765,2]
[347020878,1735471838892,-512.87,0.00012765,2]
[347020880,1735471838901,-975.34,0.00012765,2]
[347020881,1735471838910,-500.0,0.00012765,2]
[347020883,1735471838919,-1240.86,0.00012765,2]
[347020885,1735471838929,-689.66,0.00012765,2]
[347020887,1735471838940,-500.0,0.00012765,2]
[347020889,1735471838949,-285.29422706,0.00012765,2]
[347020892,1735471838961,-413.64577294,0.00012765,2]
[347020894,1735471838970,-500.0,0.00012765,2]
[347020896,1735471838980,-104.35422706,0.00012766,2]
[347020898,1735471838991,-455.97577294,0.00012766,2]
[347020899,1735471839000,-44.02422706,0.00012766,2]
[347020900,1735471839011,-455.97577294,0.00012766,2]
[347020901,1735471839020,-117.47422706,0.00012766,2]
[347020902,1735471839042,-382.52577294,0.00012766,2]
[347020903,1735471839051,-500.0,0.00012766,2]
[347020904,1735471839059,-500.0,0.00012766,2]
[347020905,1735471839068,-500.0,0.00012766,2]
[347020906,1735471839077,-500.0,0.00012766,2]
[347020908,1735471839086,-500.0,0.00012766,2]
[347020910,1735471839095,-500.0,0.00012766,2]
[347020912,1735471839104,-500.0,0.00012766,2]
[347020914,1735471839113,-500.0,0.00012766,2]
[347020916,1735471839122,-500.0,0.00012766,2]
[347020917,1735471839131,-500.0,0.00012766,2]
[347020919,1735471839140,-500.0,0.00012766,2]
[347020921,1735471839150,-500.0,0.00012766,2]
[347020923,1735471839159,-500.0,0.00012766,2]
[347020925,1735471839168,-500.0,0.00012766,2]
[347020927,1735471839177,-500.0,0.00012766,2]
[347020929,1735471839187,-500.0,0.00012766,2]
[347020931,1735471839196,-500.0,0.00012766,2]
[347020933,1735471839206,-500.0,0.00012766,2]
[347020935,1735471839215,-543.93,0.00012766,2]
[347020937,1735471839224,-439.92224077,0.00012766,2]
[347020940,1735471839236,-60.07775923,0.00012766,2]
[347020942,1735471839245,-500.0,0.00012766,2]
[347020944,1735471839254,-500.0,0.00012766,2]
[347020946,1735471839263,-500.0,0.00012766,2]
[347020948,1735471839272,-554.22,0.00012766,2]
[347020950,1735471839282,-500.0,0.00012766,2]
[347020952,1735471839291,-500.0,0.00012766,2]
[347020954,1735471839300,-500.0,0.00012766,2]
[347020956,1735471839309,-500.0,0.00012766,2]
[347020958,1735471839318,-500.0,0.00012766,2]
[347020960,1735471839327,-500.0,0.00012766,2]
[347020962,1735471839336,-500.0,0.00012766,2]
[347020964,1735471839345,-500.0,0.00012766,2]
[347020965,1735471839355,-500.0,0.00012766,2]
[347020967,1735471839364,-500.0,0.00012766,2]
[347020969,1735471839373,-500.0,0.00012766,2]
[347020971,1735471839382,-500.0,0.00012766,2]
[347020973,1735471839391,-259.60250967,0.00012766,2]
[347020975,1735471839400,-500.0,0.00012766,2]
[347020977,1735471839410,-500.0,0.00012766,2]
[347020979,1735471839419,-205.91112229,0.00012766,2]
[347021087,1735471840438,-294.08887771,0.00012766,2]
[347021089,1735471840448,-390.43127071,0.00012766,2]
[347021091,1735471840458,-500.0,0.00012766,2]
[347021093,1735471840468,-500.0,0.00012766,2]
[347021095,1735471840482,-500.0,0.00012766,2]
[347021097,1735471840491,-566.45,0.00012766,2]
[347021099,1735471840500,-500.0,0.00012766,2]
[347021101,1735471840510,-500.0,0.00012766,2]
[347021103,1735471840520,-503.80021433,0.00012766,2]
[347021105,1735471840530,-500.0,0.00012766,2]
[347021107,1735471840539,-574.94,0.00012766,2]
[347021109,1735471840549,-257.96773711,0.00012766,2]
[347021118,1735471840623,-242.03226289,0.00012766,2]
[347021120,1735471840633,-500.0,0.00012766,2]
[347021122,1735471840642,-500.0,0.00012766,2]
[347021124,1735471840651,-500.0,0.00012766,2]
[347021126,1735471840660,-500.0,0.00012766,2]
[347021128,1735471840669,-500.0,0.00012766,2]
[347021130,1735471840678,-500.0,0.00012766,2]
[347021132,1735471840688,-500.0,0.00012766,2]
[347021134,1735471840697,-500.0,0.00012766,2]
[347021135,1735471840707,-58.62987815,0.00012766,2]
[347021150,1735471840879,-441.37012185,0.00012766,2]
[347021151,1735471840888,-500.0,0.00012766,2]
[347021152,1735471840897,-500.0,0.00012766,2]
[347021153,1735471840905,-337.04892201,0.00012766,2]
[347021155,1735471840917,-162.95107799,0.00012766,2]
[347021157,1735471840926,-500.0,0.00012766,2]
[347021159,1735471840936,-500.0,0.00012766,2]
[347021161,1735471840945,-500.0,0.00012766,2]
[347021163,1735471840954,-500.0,0.00012766,2]
[347021165,1735471840964,-500.0,0.00012766,2]
[347021167,1735471840974,-500.0,0.00012766,2]
[347021169,1735471840983,-500.0,0.00012766,2]
[347021171,1735471840992,-356.14020163,0.00012766,2]
[347021173,1735471841003,-143.85979837,0.00012766,2]
[347021175,1735471841012,-171.74020163,0.00012766,2]
[347021407,1735471843200,-2023.20647907,0.00012764,2]
[347021720,1735471846244,-992.37352093,0.00012764,2]
[347021722,1735471846254,-902.73,0.00012764,2]
[347021724,1735471846264,-500.0,0.00012764,2]
[347021726,1735471846273,-500.0,0.00012764,2]
[347021728,1735471846282,-536.99,0.00012764,2]
[347021730,1735471846291,-500.0,0.00012764,2]
[347021732,1735471846301,-500.0,0.00012764,2]
[347021734,1735471846310,-500.0,0.00012765,2]
[347021736,1735471846319,-500.0,0.00012765,2]
[347021738,1735471846328,-231.53270958,0.00012765,2]
[347021740,1735471846338,-328.25979837,0.00012766,2]
[347021742,1735471846348,-500.0,0.00012766,2]
[347021744,1735471846357,-2240.09,0.00012766,2]
[347021746,1735471846367,-500.0,0.00012766,2]
[347021748,1735471846376,-500.0,0.00012766,2]
[347021750,1735471846386,-500.0,0.00012766,2]
[347021752,1735471846395,-500.0,0.00012766,2]
[347021754,1735471846405,-500.0,0.00012766,2]
[347021756,1735471846414,-500.0,0.00012766,2]
[347021758,1735471846423,-500.0,0.00012766,2]
[347021760,1735471846432,-500.0,0.00012766,2]
[347021762,1735471846442,-500.0,0.00012766,2]
[347021764,1735471846451,-500.0,0.00012766,2]
[347021766,1735471846460,-500.0,0.00012766,2]
[347021768,1735471846469,-500.0,0.00012766,2]
[347021769,1735471846481,-500.0,0.00012766,2]
[347021771,1735471846491,-500.0,0.00012766,2]
[347021773,1735471846500,-500.0,0.00012766,2]
[347021775,1735471846509,-500.0,0.00012766,2]
[347021778,1735471846520,-533.08,0.00012766,2]
[347021780,1735471846530,-504.04802334,0.00012766,2]
[347021797,1735471846539,-7500.0,0.00012766,2]
[347021800,1735471846714,-7500.0,0.00012766,2]
[347021802,1735471846724,-500.0,0.00012766,2]
[347021804,1735471846733,-500.0,0.00012766,2]
[347021806,1735471846742,-500.0,0.00012766,2]
[347021808,1735471846751,-500.0,0.00012766,2]
[347021810,1735471846761,-503.19418805,0.00012766,2]
[347021812,1735471846771,-500.0,0.00012766,2]
[347021814,1735471846780,-500.0,0.00012766,2]
[347021816,1735471846789,-500.0,0.00012766,2]
[347021818,1735471846798,-157.17017868,0.00012766,2]
[347021820,1735471846807,-500.0,0.00012766,2]
[347021822,1735471846817,-500.0,0.00012766,2]
[347021824,1735471846826,-500.0,0.00012766,2]
[347021826,1735471846835,-500.0,0.00012766,2]
[347021828,1735471846846,-548.07320979,0.00012766,2]
[347021829,1735471846855,-500.0,0.00012766,2]
[347021830,1735471846864,-554.04,0.00012766,2]
[347021831,1735471846873,-500.0,0.00012766,2]
[347021832,1735471846882,-500.0,0.00012766,2]
[347021833,1735471846891,-500.0,0.00012766,2]
[347021834,1735471846900,-500.0,0.00012766,2]
[347021835,1735471846909,-500.0,0.00012766,2]
[347021837,1735471846917,-500.0,0.00012766,2]
[347021839,1735471846927,-500.0,0.00012766,2]
[347021841,1735471846936,-500.0,0.00012766,2]
[347021843,1735471846945,-500.0,0.00012766,2]
[347021845,1735471846954,-1204.23,0.00012766,2]
[347021847,1735471846964,-500.0,0.00012766,2]
[347021849,1735471846973,-500.0,0.00012766,2]
[347021851,1735471846982,-500.0,0.00012766,2]
[347021852,1735471846993,-500.0,0.00012766,2]
[347021854,1735471847002,-500.0,0.00012766,2]
[347021856,1735471847012,-500.0,0.00012766,2]
[347021858,1735471847021,-157.96767201,0.00012766,2]
[347021860,1735471847031,-500.0,0.00012766,2]
[347021862,1735471847040,-454.73429821,0.00012766,2]
[347021865,1735471847051,-500.0,0.00012766,2]
[347021868,1735471847071,-500.0,0.00012766,2]
[347021870,1735471847082,-500.0,0.00012766,2]
[347021872,1735471847092,-500.0,0.00012766,2]
[347021874,1735471847102,-166.61241005,0.00012766,2]
[347021876,1735471847112,-1801.7,0.00012766,2]
[347021878,1735471847122,-500.0,0.00012766,2]
[347021880,1735471847132,-500.0,0.00012766,2]
[347021882,1735471847141,-500.0,0.00012766,2]
[347021884,1735471847151,-500.0,0.00012766,2]
[347021886,1735471847161,-500.0,0.00012766,2]
[347021888,1735471847171,-500.0,0.00012766,2]
[347021890,1735471847180,-500.0,0.00012766,2]
[347021892,1735471847190,-500.0,0.00012766,2]
[347021895,1735471847200,-323.29148533,0.00012766,2]
[347021897,1735471847210,-500.0,0.00012766,2]
[347021898,1735471847219,-500.0,0.00012766,2]
[347021901,1735471847228,-500.0,0.00012766,2]
[347021903,1735471847238,-500.0,0.00012766,2]
[347021905,1735471847247,-500.0,0.00012766,2]
[347021907,1735471847257,-500.0,0.00012766,2]
[347021909,1735471847267,-500.0,0.00012766,2]
[347021911,1735471847276,-500.0,0.00012766,2]
[347021913,1735471847286,-500.0,0.00012766,2]
[347021915,1735471847296,-500.0,0.00012766,2]
[347021917,1735471847306,-1885.95,0.00012766,2]
[347021919,1735471847315,-500.0,0.00012766,2]
[347021921,1735471847325,-500.0,0.00012766,2]
[347021923,1735471847335,-500.0,0.00012766,2]
[347021925,1735471847345,-502.80149315,0.00012766,2]
[347021927,1735471847355,-500.0,0.00012766,2]
[347021929,1735471847364,-500.0,0.00012766,2]
[347021931,1735471847374,-500.0,0.00012766,2]
[347021933,1735471847383,-500.0,0.00012766,2]
[347021935,1735471847393,-500.0,0.00012766,2]
[347021937,1735471847403,-500.0,0.00012766,2]
[347021939,1735471847412,-500.0,0.00012766,2]
[347021941,1735471847422,-500.0,0.00012766,2]
[347021943,1735471847431,-500.0,0.00012766,2]
[347021945,1735471847441,-500.0,0.00012766,2]
[347021947,1735471847450,-507.92380145,0.00012766,2]
[347021949,1735471847459,-500.0,0.00012766,2]
[347021951,1735471847469,-500.0,0.00012766,2]
[347021954,1735471847483,-500.0,0.00012766,2]
[347021956,1735471847492,-500.0,0.00012766,2]
[347021958,1735471847502,-500.0,0.00012766,2]
[347021960,1735471847511,-500.0,0.00012766,2]
[347021962,1735471847521,-500.0,0.00012766,2]
[347021964,1735471847532,-500.0,0.00012766,2]
[347021966,1735471847541,-500.0,0.00012766,2]
[347021968,1735471847551,-500.0,0.00012766,2]
[347021970,1735471847560,-500.0,0.00012766,2]
[347021972,1735471847569,-973.55,0.00012766,2]
[347021974,1735471847580,-500.0,0.00012766,2]
[347021976,1735471847590,-500.0,0.00012766,2]
[347021978,1735471847601,-500.0,0.00012766,2]
[347021980,1735471847612,-500.0,0.00012766,2]
[347021982,1735471847622,-500.0,0.00012766,2]
[347021984,1735471847631,-500.0,0.00012766,2]
[347021986,1735471847640,-500.0,0.00012766,2]
[347021988,1735471847650,-500.0,0.00012766,2]
[347021990,1735471847659,-509.56913241,0.00012766,2]